bitfinex/quotes_ETHUSD_20240825
["timestamp","ask_amount","ask_price","bid_price","bid_amount"]
[1724598853431,3.60627,2773.0,2772.6,2.86868]
[1724598858090,4.87123099,2773.1,2772.6,2.86868]
[1724598858391,3.60634,2772.9,2772.4,2.28]
[1724598858791,3.60634,2772.9,2772.4,7.15204099]
[1724598862731,3.60634,2772.9,2772.4,3.54509099]
[1724598863023,3.60634,2772.9,2772.4,2.28]
[1724598864212,3.60634,2772.9,2772.4,5.88695]
[1724598864417,3.60634,2772.9,2772.5,0.949396]
[1724598864816,2.4225,2773.2,2772.6,1.33722068]
[1724598865045,14.67179,2773.3,2772.7,5.88651]
[1724598865245,11.06589,2773.3,2772.7,5.88651]
[1724598865541,14.6718,2773.3,2772.7,5.88651]
[1724598865848,3.60594,2773.2,2772.7,5.88651]
[1724598868230,3.60594,2773.2,2772.7,6.9623501]
[1724598870108,11.06589,2773.3,2772.7,6.9623501]
[1724598872668,7.46,2773.3,2773.1,2.343]
[1724598872870,7.46,2773.3,2773.1,5.94902]
[1724598873069,7.46,2773.3,2773.1,1.0820371]
[1724598873220,7.46,2773.3,2773.0,3.60619]
[1724598873424,7.46,2773.3,2773.1,3.60605]
[1724598873637,7.46,2773.3,2773.1,5.94905]
[1724598874119,7.23764099,2773.7,2773.1,5.94905]
[1724598874321,10.84303099,2773.7,2773.1,5.94905]
[1724598874568,7.23764099,2773.7,2773.1,6.904579]
[1724598876172,4.87044099,2773.7,2773.1,6.904579]
[1724598878473,5.97229,2773.9,2773.1,6.904509]
[1724598878628,7.46,2774.0,2773.4,1.26509099]
[1724598878830,7.46,2774.0,2773.5,0.3608091]
[1724598879483,7.46,2774.0,2773.6,2.343]
[1724598880353,7.46,2774.0,2773.3,3.60572]
[1724598880354,2.3672,2773.9,2773.3,5.94872]
[1724598881086,8.72509099,2774.0,2773.3,5.94872]
[1724598881273,8.72509099,2774.0,2773.3,6.904193]
[1724598881657,7.46,2774.0,2773.6,1.26509099]
[1724598882263,7.46,2774.0,2773.3,3.298473]
[1724598882264,7.46,2774.0,2773.3,2.343]
[1724598882604,7.46,2774.0,2773.5,1.26509099]
[1724598883213,2.3672,2774.1,2773.5,1.26509099]
[1724598883509,5.291848,2774.1,2773.5,1.26509099]
[1724598884783,2.3672,2774.0,2773.5,1.26509099]
[1724598887035,2.3672,2774.0,2773.2,1.26509099]
[1724598888425,2.3672,2774.0,2773.4,1.26509099]
[1724598899335,2.3172,2774.0,2773.4,1.26509099]
[1724598899653,3.15165224,2774.2,2773.2,1.26509099]
[1724598899654,0.23172,2773.9,2773.2,1.26509099]
[1724598899809,6.04143125,2774.1,2773.2,1.26509099]
[1724598900264,1.88656125,2774.1,2773.2,1.26509099]
[1724598900427,1.88656125,2774.2,2773.4,1.26509099]
[1724598900759,1.06116522,2774.1,2773.4,1.26509099]
[1724598900959,2.94772647,2774.1,2773.4,1.26509099]
[1724598902571,2.4185,2774.0,2773.4,1.26509099]
[1724598902918,2.4185,2774.0,2772.9,6.06621]
[1724598903261,2.4185,2773.9,2773.2,1.26509099]
[1724598903469,2.4185,2773.8,2773.2,1.26509099]
[1724598906825,2.4185,2773.8,2773.4,1.26509099]
[1724598909467,2.4185,2773.8,2773.2,1.26509099]
[1724598909956,2.4185,2773.8,2773.2,3.07109099]
[1724598911340,2.4185,2773.8,2773.2,3.73881609]
[1724598915457,2.4829,2773.7,2773.2,3.73881609]
[1724598916156,2.4829,2773.7,2773.2,6.18021609]
[1724598916484,2.4829,2773.7,2773.2,3.73881609]
[1724598916781,2.4829,2773.7,2773.2,3.07109099]
[1724598919216,2.4829,2773.7,2773.4,1.26509099]
[1724598919350,1.89232381,2773.8,2773.6,1.26509099]
[1724598919553,4.37522381,2773.9,2773.6,1.26509099]
[1724598919800,2.4829,2773.9,2773.6,1.26509099]
[1724598920910,4.37522381,2773.9,2773.4,1.26509099]
[1724598921051,1.89232381,2773.8,2773.4,1.26509099]
[1724598921654,4.37522381,2773.9,2773.4,1.26509099]
[1724598921868,1.89232381,2773.8,2773.4,1.26509099]
[1724598922599,1.89294337,2773.8,2773.4,1.26509099]
[1724598923030,1.89294337,2773.8,2773.2,1.806]
[1724598923301,2.4829,2773.7,2773.3,1.26509099]
[1724598925106,4.37584337,2773.7,2773.2,1.806]
[1724598925870,2.4829,2773.7,2773.2,1.806]
[1724598926480,4.37620065,2773.7,2773.2,1.806]
[1724598927368,4.37645643,2773.7,2773.2,1.806]
[1724598928166,1.89355643,2773.8,2773.5,1.26509099]
[1724598929712,1.89355643,2773.7,2773.5,1.26509099]
[1724598930221,1.89355643,2773.8,2773.5,1.26509099]
[1724598930567,1.8938054,2773.8,2773.5,1.26509099]
[1724598931469,1.8938054,2773.8,2773.7,1.26509099]
[1724598932078,1.8938054,2773.8,2773.5,3.56839099]
[1724598932283,4.19556092,2773.8,2773.5,1.26509099]
[1724598932711,4.19556092,2773.8,2773.3,1.26509099]
[1724598932889,1.89376092,2773.7,2773.3,1.26509099]
[1724598935700,2.3018,2773.8,2773.3,1.26509099]
[1724598935900,1.89402882,2773.7,2773.3,1.26509099]
[1724598937223,1.89409532,2773.7,2773.3,1.26509099]
[1724598938844,1.89409532,2773.7,2773.5,1.26509099]
[1724598941632,1.89409532,2773.7,2773.5,1.62193009]
[1724598941785,1.89409532,2773.8,2773.5,1.62193009]
[1724598941985,1.89393884,2773.8,2773.7,1.26509099]
[1724598942189,1.89393884,2773.9,2773.7,1.26509099]
[1724598942682,1.89393884,2773.8,2773.7,1.26509099]
[1724598943131,1.89393884,2773.9,2773.7,1.26509099]
[1724598943704,1.89393884,2773.9,2773.5,1.62193009]
[1724598946836,1.89345295,2773.9,2773.5,1.62193009]
[1724598948441,2.4893,2773.6,2773.2,3.07109099]
[1724598950827,4.38275295,2773.6,2773.2,1.806]
[1724598951333,4.38275295,2773.6,2773.4,1.26509099]
[1724598951567,1.89363417,2773.6,2773.4,1.26509099]
[1724598951691,1.89363417,2773.6,2773.2,3.07109099]
[1724598952095,4.38293417,2773.6,2773.2,3.07109099]
[1724598954898,1.89363417,2773.6,2773.2,3.07109099]
[1724598955133,1.89363417,2773.6,2773.2,3.98342809]
[1724598956045,2.4893,2773.5,2773.2,1.806]
[1724598957156,2.48786467,2773.5,2773.2,1.806]
[1724598957640,2.48786467,2773.5,2773.2,3.07109099]
[1724598959141,1.89363417,2773.6,2773.2,3.07109099]
[1724598960842,1.89331965,2773.6,2773.2,3.07109099]
[1724598961137,2.4893,2773.7,2773.2,3.07109099]
[1724598961138,1.89331965,2773.7,2773.4,1.26509099]
[1724598962248,1.89331965,2773.6,2773.4,1.26509099]
[1724598962415,1.89331965,2773.7,2773.5,1.26509099]
[1724598962613,1.89331965,2773.8,2773.5,1.26509099]
[1724598963005,2.4893,2773.7,2773.3,1.26509099]
[1724598963529,4.38261965,2773.7,2773.3,1.26509099]
[1724598964204,2.4893,2773.7,2773.3,1.26509099]
[1724598964853,1.89325315,2773.8,2773.5,3.71119099]
[1724598965152,7.46,2773.9,2773.7,1.26509099]
[1724598966504,1.89325315,2774.1,2773.7,1.26509099]
[1724598967055,1.89325315,2774.0,2773.5,3.71119099]
[1724598967620,1.89325315,2774.1,2773.5,3.71119099]
[1724598967821,12.22120378,2774.3,2773.5,2.0880223]
[1724598967822,4.29535315,2774.0,2773.5,2.0880223]
[1724598968125,4.29535315,2774.0,2773.5,1.26509099]
[1724598969468,4.29453398,2774.0,2773.5,1.26509099]
[1724598970226,1.89243398,2774.0,2773.5,1.26509099]
[1724598970422,1.89243398,2774.1,2773.5,1.26509099]
[1724598971067,1.89243398,2774.0,2773.5,1.26509099]
[1724598971218,1.89243398,2774.0,2773.6,0.3654591]
[1724598971418,1.89243398,2774.1,2773.6,0.3654591]
[1724598972941,1.89243398,2774.2,2773.7,3.65459099]
[1724598973529,1.89243398,2774.2,2773.9,1.26509099]
[1724598976368,9.35243398,2774.3,2773.9,1.26509099]
[1724598976672,1.89243398,2774.2,2773.9,1.26509099]
[1724598976878,9.35243398,2774.3,2773.9,1.26509099]
[1724598977971,1.89243398,2774.3,2773.9,1.26509099]
[1724598978279,1.89243398,2774.4,2773.9,1.26509099]
[1724598978627,1.89243398,2774.3,2773.9,1.26509099]
[1724598978979,1.89111769,2774.3,2773.7,3.65459099]
[1724598979543,1.89111769,2774.4,2773.7,3.65459099]
[1724598979740,3.29337358,2774.4,2773.7,3.65459099]
[1724598979943,1.89111769,2774.3,2773.7,3.65459099]
[1724598980181,3.29337358,2774.4,2773.7,3.65459099]
[1724598981258,1.89111769,2774.4,2773.7,3.65459099]
[1724598982189,1.89111769,2774.4,2773.9,1.26509099]
[1724598982400,4.29321769,2774.5,2773.9,1.26509099]
[1724598982562,4.29321769,2774.5,2773.7,2.3895]
[1724598982563,1.89111769,2774.4,2773.7,3.65459099]
[1724598986543,1.89034649,2774.4,2773.7,3.65459099]
[1724598987778,1.89034649,2774.4,2773.3,2.26]
[1724598987779,2.3923,2774.2,2773.3,2.26]
[1724598987962,4.28264649,2774.2,2773.3,3.52509099]
[1724598988180,1.30077375,2774.1,2773.3,3.52509099]
[1724598990095,1.30077375,2774.1,2773.5,1.26509099]
[1724598990304,2.3923,2774.2,2773.5,1.26509099]
[1724598992516,2.3923,2774.1,2773.3,2.26]
[1724598992807,2.3923,2773.7,2773.2,1.806]
[1724598993530,2.3923,2773.3,2773.2,1.806]
[1724598994800,4.28292354,2773.3,2773.2,1.806]
[1724598994977,5.3923,2773.3,2773.2,1.806]
[1724598997218,7.28063132,2773.3,2773.2,1.806]
[1724598997524,8.72263438,2773.3,2773.2,1.806]
[1724598997805,8.72263253,2773.3,2773.2,1.806]
[1724598998380,12.87844253,2773.3,2773.2,1.806]
[1724598998910,10.99011306,2773.3,2773.2,1.806]
[1724598999114,12.87728511,2773.3,2773.2,1.806]
[1724598999412,10.99011306,2773.3,2773.2,1.806]
[1724598999647,14.59592306,2773.3,2773.2,1.806]
[1724598999766,16.86191842,2773.3,2773.2,1.806]
[1724599000125,16.85961589,2773.3,2773.2,1.806]
[1724599001111,20.46440035,2773.3,2773.2,1.806]
[1724599001310,16.85859035,2773.3,2773.2,1.806]
[1724599002070,14.59592306,2773.3,2773.2,1.806]
[1724599002467,16.85859035,2773.3,2773.2,1.806]
[1724599002671,14.59592306,2773.3,2773.2,1.806]
[1724599002911,16.85859035,2773.3,2773.2,1.806]
[1724599003122,14.59592306,2773.3,2773.2,1.806]
[1724599003570,18.20173306,2773.3,2773.2,1.806]
[1724599003768,18.56313306,2773.3,2773.2,1.806]
[1724599003973,16.85698653,2773.3,2773.2,1.806]
[1724599005155,15.86101405,2773.3,2773.2,1.806]
[1724599007124,17.74287828,2773.3,2773.2,1.806]
[1724599007348,15.86101405,2773.3,2773.2,1.806]
[1724599007516,17.74274618,2773.3,2773.2,1.806]
[1724599008100,15.86101405,2773.3,2773.2,1.806]
[1724599008597,2.70709405,2773.3,2773.2,1.806]
[1724599008800,1.26509099,2773.3,2773.2,1.806]
[1724599009944,1.81509099,2773.3,2773.2,1.806]
[1724599010141,0.55,2773.3,2773.2,1.806]
[1724599010549,0.55,2773.4,2773.2,1.806]
[1724599011242,4.1557,2773.4,2773.2,1.806]
[1724599011449,5.180984,2773.4,2773.2,1.806]
[1724599011746,3.0,2773.3,2773.2,1.806]
[1724599011902,3.55,2773.3,2773.2,1.806]
[1724599019858,3.0,2773.3,2773.2,1.806]
[1724599020158,3.0,2773.4,2773.2,1.806]
[1724599020462,3.909705,2773.4,2773.2,1.806]
[1724599022324,3.60581,2773.3,2773.2,1.806]
[1724599022525,6.60581,2773.3,2773.2,1.806]
[1724599024331,7.15581,2773.3,2773.2,1.806]
[1724599024531,10.76162,2773.3,2773.2,1.806]
[1724599024853,12.48033818,2773.3,2773.2,1.806]
[1724599025252,12.48033818,2773.3,2771.3,2.2712]
[1724599025253,2.4884,2772.8,2771.3,2.2712]
[1724599025458,2.4884,2772.8,2771.4,2.2712]
[1724599025459,11.06672,2772.6,2771.4,2.2712]
[1724599026525,7.46,2772.6,2771.4,2.2712]
[1724599027766,11.06674,2772.6,2771.4,2.2712]
[1724599027965,2.4884,2772.4,2771.4,2.2712]
[1724599028168,0.90437542,2772.3,2771.4,2.2712]
[1724599030607,3.55,2772.5,2771.4,2.2712]
[1724599030757,3.0,2772.5,2771.4,2.2712]
[1724599031188,6.60695,2772.5,2771.4,2.2712]
[1724599031354,0.55,2772.4,2771.4,2.2712]
[1724599031681,0.715695,2772.3,2771.4,2.859166]
[1724599032088,1.26108994,2772.2,2771.4,2.859166]
[1724599033092,3.0,2772.5,2771.7,1.26108994]
[1724599034081,3.0,2772.5,2771.6,2.2712]
[1724599035797,7.46,2772.6,2771.6,2.2712]
[1724599036023,7.46,2772.6,2771.8,2.2712]
[1724599036710,3.60691,2772.5,2771.8,2.2712]
[1724599037806,5.49164065,2772.5,2771.8,2.2712]
[1724599037988,2.4884,2772.4,2771.5,2.2712]
[1724599038172,0.79800407,2772.3,2771.5,2.2712]
[1724599039706,6.29321222,2772.3,2771.5,2.2712]
[1724599039909,4.40511407,2772.3,2771.5,2.2712]
[1724599040061,6.29321222,2772.3,2771.5,2.2712]
[1724599040262,4.40511407,2772.3,2771.5,2.2712]
[1724599040579,0.87816122,2772.2,2771.5,2.2712]
[1724599041120,0.79800407,2772.3,2771.5,2.2712]
[1724599041274,1.88809815,2772.4,2771.5,2.2712]
[1724599041472,4.88809815,2772.5,2771.5,2.2712]
[1724599042200,4.88809815,2772.5,2771.5,5.87933]
[1724599042358,3.0,2772.5,2771.7,2.2712]
[1724599042558,9.34809815,2772.6,2771.7,2.2712]
[1724599043711,9.34865807,2772.6,2771.7,2.2712]
[1724599046315,7.46,2772.6,2771.7,2.2712]
[1724599046468,9.34865807,2772.6,2771.8,0.6467083]
[1724599046800,7.46,2772.6,2771.9,2.3898]
[1724599049836,7.46,2772.6,2772.0,2.46194992]
[1724599050037,9.34881549,2773.2,2772.6,2.3898]
[1724599050291,21.55881549,2773.5,2772.6,2.3898]
[1724599050435,24.3018849,2773.5,2772.6,2.3898]
[1724599051280,22.41306941,2773.5,2772.6,2.3898]
[1724599052595,19.67,2773.5,2772.6,2.3898]
[1724599053146,19.67,2773.5,2772.7,2.3898]
[1724599053446,19.67,2773.5,2772.9,2.3898]
[1724599053788,9.34719473,2773.8,2772.9,2.3898]
[1724599053942,7.46,2773.8,2772.9,2.3898]
[1724599054276,1.29522347,2773.7,2772.9,2.3898]
[1724599061312,7.46,2773.8,2772.9,2.3898]
[1724599064105,7.46,2773.8,2773.0,2.3898]
[1724599064307,7.46,2773.8,2773.1,2.3898]
[1724599064821,7.46,2773.8,2773.2,2.3898]
[1724599064999,7.46,2773.8,2773.2,2.989389]
[1724599067556,12.21,2774.1,2773.2,2.3898]
[1724599067557,19.67,2774.1,2773.2,2.3898]
[1724599070043,1.25958541,2773.7,2773.2,2.3898]
[1724599076563,6.06147,2774.0,2773.2,2.3898]
[1724599076878,8.71958541,2774.1,2773.2,2.3898]
[1724599077049,3.55,2774.0,2773.2,2.3898]
[1724599077243,1.22695854,2773.9,2773.2,2.3898]
[1724599079114,2.48654395,2773.9,2773.2,2.3898]
[1724599092252,4.37366483,2773.9,2773.2,2.3898]
[1724599093418,1.88712088,2773.8,2773.2,2.3898]
[1724599094210,1.88712088,2773.7,2773.2,2.3898]
[1724599095225,1.88712088,2773.6,2773.2,2.3898]
[1724599097857,1.88712088,2773.6,2773.3,1.25958541]
[1724599098070,1.88712088,2773.8,2773.6,2.2866]
[1724599098221,1.88712088,2773.9,2773.7,1.25958541]
[1724599098570,1.88712088,2774.1,2773.8,2.2866]
[1724599099886,1.89230087,2774.1,2773.8,2.2866]
[1724599100943,1.89230087,2774.2,2773.8,2.2866]
[1724599103473,1.89230087,2774.3,2773.8,2.51526]
[1724599104163,1.89230087,2774.3,2773.8,2.2866]
[1724599104367,1.89066809,2774.3,2773.8,2.2866]
[1724599106150,9.35066809,2774.4,2773.8,2.2866]
[1724599106770,7.46,2774.4,2773.8,2.2866]
[1724599107000,10.22218995,2774.4,2773.8,2.2866]
[1724599107501,10.22190114,2774.4,2773.8,2.2866]
[1724599108094,8.33195854,2774.4,2773.8,2.2866]
[1724599108259,7.46,2774.4,2773.8,2.2866]
[1724599110078,9.3499426,2774.4,2773.8,2.2866]
[1724599110919,7.46,2774.4,2773.8,2.2866]
[1724599111812,1.25958541,2774.2,2773.8,2.2866]
[1724599112125,3.14952801,2774.2,2773.3,3.56958541]
[1724599112421,2.55656821,2774.2,2773.3,3.56958541]
[1724599113068,2.55656821,2774.2,2773.3,1.25958541]
[1724599113274,2.55656821,2774.2,2773.4,2.31]
[1724599115274,2.55656821,2774.2,2773.5,2.31]
[1724599115871,1.2969828,2774.2,2773.6,2.31]
[1724599117574,9.34925332,2774.4,2773.6,5.91539]
[1724599117776,9.34925332,2774.4,2773.7,3.56958541]
[1724599117975,7.46,2774.4,2773.7,3.56958541]
[1724599119281,9.34925332,2774.4,2773.7,3.56958541]
[1724599119790,9.34925332,2774.4,2773.8,2.31]
[1724599120018,7.46,2774.4,2773.9,1.25958541]
[1724599120203,7.46,2774.4,2774.0,2.31]
[1724599120604,14.09925332,2774.7,2774.2,2.31]
[1724599120605,1.88925332,2774.7,2774.2,2.31]
[1724599120810,9.34925332,2774.9,2774.4,2.31]
[1724599121124,1.23492533,2774.8,2774.4,2.31]
[1724599121276,3.14883873,2774.9,2774.4,2.31]
[1724599124240,3.14747994,2774.9,2774.4,2.31]
[1724599125933,1.25958541,2774.7,2774.0,2.4213]
[1724599130135,10.60723192,2774.9,2774.0,2.4213]
[1724599130340,1.72108519,2774.8,2774.0,2.4213]
[1724599130769,3.6087317,2774.8,2774.0,2.4213]
[1724599131746,1.72108519,2774.8,2774.0,2.4213]
[1724599132090,3.6087317,2774.8,2774.0,2.4213]
[1724599133858,3.60888417,2774.8,2774.0,2.4213]
[1724599134064,1.23284696,2774.7,2774.0,2.4213]
[1724599139303,3.60956091,2774.8,2774.0,2.4213]
[1724599140116,1.88847572,2774.7,2774.0,2.4213]
[1724599142206,1.72108519,2774.8,2774.0,2.4213]
[1724599142412,1.88992634,2774.7,2774.0,2.4213]
[1724599142629,1.88992634,2774.6,2774.0,2.4213]
[1724599143411,7.61021519,2774.8,2774.0,2.4213]
[1724599143614,1.89048186,2774.6,2774.0,2.4213]
[1724599147241,1.89080689,2774.6,2774.0,2.4213]
[1724599148467,1.89080689,2774.5,2774.0,2.4213]
[1724599148820,1.89080689,2774.6,2774.0,2.4213]
[1724599149142,1.89080689,2774.5,2774.0,2.4213]
[1724599151903,2.31838024,2774.6,2774.0,2.4213]
[1724599152141,1.25958541,2774.1,2773.5,2.2848]
[1724599152476,3.150769,2774.1,2773.5,2.2848]
[1724599152811,3.15117894,2774.1,2773.5,2.2848]
[1724599153050,2.20671142,2774.1,2773.5,2.2848]
[1724599153262,0.31511789,2774.1,2773.5,2.2848]
[1724599156588,1.89159353,2774.2,2773.5,2.2848]
[1724599157917,3.51888541,2774.1,2773.5,2.2848]
[1724599158042,5.41047894,2774.1,2773.5,2.2848]
[1724599158554,1.89159353,2774.0,2773.3,2.2848]
[1724599158992,5.41047894,2774.1,2773.3,2.2848]
[1724599159169,3.15117894,2774.1,2773.4,0.35443854]
[1724599160061,1.89159353,2774.2,2773.5,2.2848]
[1724599160263,1.89159353,2774.1,2773.5,2.2848]
[1724599161593,1.89086997,2774.1,2773.5,2.2848]
[1724599161941,1.89086997,2774.2,2773.5,2.2848]
[1724599162244,2.46966291,2774.2,2773.5,2.2848]
[1724599162975,1.89086997,2774.1,2773.5,2.2848]
[1724599165095,2.46966291,2774.2,2773.5,2.2848]
[1724599166352,1.89086997,2774.2,2773.7,2.459]
[1724599166653,1.89086997,2774.3,2773.7,2.459]
[1724599167083,1.89012615,2774.3,2773.7,2.459]
[1724599167948,1.89012615,2774.2,2773.7,2.459]
[1724599168151,4.59679731,2774.1,2773.5,2.459]
[1724599168501,1.25958541,2773.9,2773.3,2.459]
[1724599171455,1.88993675,2774.0,2773.3,2.459]
[1724599171658,5.85619332,2774.1,2773.3,2.459]
[1724599171860,1.33161933,2774.0,2773.3,2.459]
[1724599174239,3.22155608,2774.0,2773.3,2.459]
[1724599175213,1.33161933,2774.0,2773.3,2.459]
[1724599176298,5.85619332,2774.1,2773.3,2.459]
[1724599176606,7.46,2774.2,2773.4,1.25958541]
[1724599176607,9.34993675,2774.2,2773.4,1.25958541]
[1724599176853,9.34993675,2774.2,2773.5,2.459]
[1724599180218,3.14952216,2774.1,2773.5,2.459]
[1724599180372,3.45265222,2774.0,2773.3,2.459]
[1724599181409,5.34258897,2774.0,2773.3,2.459]
[1724599185496,1.88993675,2773.9,2773.3,2.459]
[1724599185692,1.02069444,2773.9,2773.3,2.459]
[1724599186415,1.02069444,2773.9,2773.1,3.58098541]
[1724599186598,2.91063119,2773.9,2773.1,3.58098541]
[1724599186798,5.34258897,2774.0,2773.1,3.58098541]
[1724599187273,4.28163675,2774.0,2773.1,3.58098541]
[1724599188900,4.28163675,2774.0,2773.3,1.25958541]
[1724599190793,4.28228356,2774.0,2773.3,1.25958541]
[1724599191118,4.28228356,2774.0,2773.4,2.3214]
[1724599191684,5.80934048,2774.0,2773.4,2.3214]
[1724599192047,1.89058356,2773.9,2773.4,2.3214]
[1724599192192,1.89058356,2773.9,2773.2,2.3214]
[1724599195334,3.15016897,2773.9,2773.2,2.3214]
[1724599195763,1.89193296,2773.8,2773.2,2.3214]
[1724599195915,3.15151837,2773.9,2773.2,2.3214]
[1724599196235,1.89193296,2773.8,2773.2,2.3214]
[1724599196397,1.89193296,2773.8,2773.2,3.04010854]
[1724599197036,3.15151837,2773.9,2773.2,3.04010854]
[1724599197243,1.89193296,2773.9,2773.2,3.04010854]
[1724599197449,1.89193296,2773.9,2773.3,1.25958541]
[1724599198534,1.89193296,2773.9,2773.4,2.3214]
[1724599198738,1.89193296,2773.9,2773.5,2.67949854]
[1724599199047,1.89193296,2774.0,2773.5,3.93908395]
[1724599200474,1.89299778,2774.0,2773.5,3.93908395]
[1724599201005,1.89304252,2773.9,2773.5,0.35809854]
[1724599201575,1.89304252,2773.9,2773.4,2.3214]
[1724599201874,9.73165102,2774.2,2773.8,2.3214]
[1724599201875,9.35304252,2774.2,2773.8,2.3214]
[1724599202075,1.89304252,2774.1,2773.8,2.3214]
[1724599202382,9.35304252,2774.2,2773.8,2.67949854]
[1724599203103,9.35304252,2774.2,2773.5,1.25958541]
[1724599203104,1.89304252,2774.1,2773.6,2.3214]
[1724599203305,1.89304252,2774.0,2773.3,3.58098541]
[1724599204039,1.89304252,2773.9,2773.3,2.3214]
[1724599209416,1.89313372,2773.9,2773.3,2.3214]
[1724599211187,1.89313372,2774.0,2773.4,3.60566]
[1724599211389,1.89313372,2774.0,2773.5,1.25958541]
[1724599212589,1.89313372,2774.0,2773.6,2.2948]
[1724599212910,1.89313372,2774.1,2773.6,2.2948]
[1724599213317,7.46,2774.2,2773.6,2.2948]
[1724599213616,1.8928741,2774.1,2773.6,3.1187151]
[1724599215312,1.8928741,2774.1,2773.6,2.2948]
[1724599216505,1.8928741,2774.0,2773.6,2.2948]
[1724599217375,1.8928741,2774.0,2773.5,2.315]
[1724599217821,1.8928741,2774.0,2773.5,3.03303054]
[1724599218351,1.8928741,2774.1,2773.5,4.29261595]
[1724599222214,1.8928741,2774.0,2773.5,4.29261595]
[1724599222435,1.8928741,2774.1,2773.5,4.29261595]
[1724599222963,1.89260475,2774.1,2773.5,4.29261595]
[1724599223848,1.89260475,2774.1,2773.8,2.315]
[1724599224946,9.35260475,2774.2,2773.8,2.315]
[1724599227152,9.35227238,2774.2,2773.8,2.315]
[1724599227538,1.89227238,2774.4,2774.0,2.436]
[1724599227756,1.89227238,2774.5,2774.0,2.436]
[1724599228261,1.89227238,2774.6,2774.0,2.436]
[1724599228833,1.89227238,2774.5,2774.0,2.436]
[1724599229160,1.89227238,2774.6,2774.0,2.436]
[1724599231691,1.89227238,2774.5,2774.0,2.436]
[1724599231892,2.4332,2774.4,2773.7,2.436]
[1724599232062,2.4332,2774.4,2773.7,3.69558541]
[1724599232260,1.89227238,2774.5,2773.7,3.69558541]
[1724599232484,1.89076607,2774.5,2773.7,4.42569595]
[1724599237148,1.89076607,2774.5,2773.9,1.25958541]
[1724599237301,1.25958541,2774.7,2774.0,2.436]
[1724599237302,1.89033769,2774.6,2774.0,2.436]
[1724599237510,3.1499231,2774.7,2774.0,2.436]
[1724599237661,3.1499231,2774.7,2774.0,3.16606154]
[1724599237859,3.1499231,2774.7,2774.0,2.436]
[1724599237860,1.89033769,2774.6,2774.0,2.436]
[1724599238106,1.89033769,2774.5,2774.0,2.436]
[1724599239259,1.89033769,2774.7,2774.0,2.436]
[1724599239804,1.89033769,2774.7,2774.1,2.436]
[1724599239970,3.1499231,2774.8,2774.1,3.52653654]
[1724599241335,3.1499231,2774.8,2774.1,2.436]
[1724599241336,1.25958541,2774.6,2774.1,2.436]
[1724599241478,3.69278541,2774.6,2774.1,2.436]
[1724599242992,1.25958541,2774.6,2774.1,2.436]
[1724599243193,3.14958177,2774.8,2774.1,2.436]
[1724599243416,3.14958177,2774.8,2774.1,2.80555854]
[1724599244007,1.88999636,2774.7,2774.1,2.436]
[1724599246806,1.88980033,2774.7,2774.1,2.436]
[1724599247301,3.14938574,2774.8,2774.1,2.436]
[1724599247519,1.88980033,2774.8,2774.2,2.3772]
[1724599248291,1.88980033,2774.9,2774.2,2.3772]
[1724599248515,1.88980033,2774.9,2774.3,3.63678541]
[1724599248710,3.69208541,2775.2,2774.3,3.63678541]
[1724599248711,1.88980033,2775.0,2774.4,2.3772]
[1724599249933,1.88980033,2774.9,2774.4,2.3772]
[1724599250132,3.14938574,2775.0,2774.4,2.3772]
[1724599250389,1.88980033,2774.9,2774.4,2.3772]
[1724599251556,1.88917666,2774.9,2774.4,2.3772]
[1724599254519,3.14876207,2775.0,2774.4,2.3772]
[1724599255222,4.35352393,2775.0,2774.4,2.3772]
[1724599256491,4.35360497,2775.0,2774.4,2.3772]
[1724599257833,3.14884311,2775.0,2774.4,2.3772]
[1724599258486,1.8892577,2775.0,2774.4,2.3772]
[1724599260666,1.25958541,2775.1,2774.4,2.3772]
[1724599260934,1.88919134,2775.0,2774.4,2.3772]
[1724599263655,1.25958541,2775.1,2774.4,2.3772]
[1724599263656,1.88919134,2774.9,2774.4,2.3772]
[1724599264151,1.88919134,2775.0,2774.4,2.3772]
[1724599264350,2.44731901,2775.0,2774.4,2.3772]
[1724599264578,2.44758868,2775.0,2774.4,2.3772]
[1724599266262,1.88946101,2774.9,2774.4,2.3772]
[1724599266878,2.44758868,2775.0,2774.4,2.3772]
[1724599267050,1.88946101,2774.9,2774.4,2.3772]
[1724599267248,2.26017842,2774.9,2774.4,2.3772]
[1724599268260,1.88946101,2774.8,2774.4,2.3772]
[1724599268759,2.26017842,2774.9,2774.4,2.3772]
[1724599268961,1.88946101,2774.9,2774.4,2.3772]
[1724599270699,0.55812767,2775.0,2774.4,2.3772]
[1724599270700,1.88946101,2774.8,2774.4,2.3772]
[1724599272997,2.82548088,2775.0,2774.4,2.3772]
[1724599272998,1.88946101,2774.9,2774.4,2.3772]
[1724599273200,1.88946101,2774.8,2774.4,2.3772]
[1724599274089,0.55812767,2775.0,2774.4,2.3772]
[1724599274327,1.89144113,2774.8,2774.4,2.3772]
[1724599276107,1.25958541,2774.5,2774.0,0.33710367]
[1724599276283,3.15102654,2774.2,2773.7,2.4819]
[1724599276621,1.89144113,2774.2,2773.7,2.4819]
[1724599277022,1.89144113,2774.3,2773.7,2.73009]
[1724599277321,1.89144113,2774.3,2773.9,1.25958541]
[1724599277518,1.25958541,2774.7,2774.0,2.4819]
[1724599277519,1.89144113,2774.4,2774.0,2.4819]
[1724599277742,1.89144113,2774.5,2774.0,2.4819]
[1724599278986,1.89151459,2774.5,2774.0,2.4819]
[1724599279211,1.89151459,2774.6,2774.2,2.4819]
[1724599279612,1.89151459,2774.7,2774.2,2.4819]
[1724599279787,1.89151459,2774.6,2774.2,2.4819]
[1724599282530,1.89151459,2774.5,2774.2,2.4819]
[1724599283620,1.89185366,2774.5,2774.2,2.4819]
[1724599283995,1.25958541,2774.7,2774.2,2.4819]
[1724599283996,1.89185366,2774.6,2774.2,2.4819]
[1724599284228,1.89185366,2774.6,2774.2,2.73009]
[1724599284525,1.89185366,2774.7,2774.2,2.73009]
[1724599284681,3.52980981,2774.9,2774.2,2.4819]
[1724599284682,1.89185366,2774.6,2774.2,2.4819]